Workbook

Sheet ポジションサイズの計算
B1: EUR/CAD 日足 2009年12月～2012年1月
B4: エントリー前 | G4: 決済後 | L4: 損益pips | O4: 損切り幅の計算
B5: A | C5: B | D5: C | E5: D | F5: E | G5: F | H5: G | I5: H | J5: I | K5: J | L5: K | M5: L | N5: M | O5: 1 | P5: 2 | Q5: 3 | S5: エントリー | T5: 決済
A6: No | B6: 資金 | C6: ロスカット | D6: 損切り幅 | E6: レート | F6: ﾎﾟｼﾞｼｮﾝｻｲｽﾞ | G6: 獲得pips | H6: ロット | J6: レート | K6: 損益 | L6: エントリー | M6: 決済 | N6: 損益 | O6: STOP | P6: エントリー | Q6: 損切り幅 | R6: 売買 | S6: 日付 | T6: 日付
A8: 1 | B8: 500000 | C8: 0.03 | D8: 163 | E8: 96 | F8: =SUM(B8*C8/D8/E8) -> 0.9585889571 | G8: 1075 | H8: 0.9 | I8: 100 | J8: 0.96 | K8: =SUM(G8*H8*I8*J8) -> 92880 | L8: 1.5457 | M8: 1.4382 | N8: =SUM(L8-M8) -> 0.1075 | O8: 1.562 | P8: 1.5457 | Q8: =SUM(O8-P8) -> 0.0163 | R8: 売 | S8: 2015-12-15 | T8: 2015-02-25
A9: 2 | B9: =SUM(B8+K8) -> 592880 | C9: 0.03 | D9: 129 | E9: 96 | F9: =SUM(B9*C9/D9/E9) -> 1.43624031 | G9: 1311 | H9: 1.4 | I9: 100 | J9: 0.96 | K9: =SUM(G9*H9*I9*J9) -> 176198.4 | L9: 1.3969 | M9: 1.2658 | N9: =SUM(L9-M9) -> 0.1311 | O9: 1.4098 | P9: 1.3969 | Q9: =SUM(O9-P9) -> 0.0129 | R9: 売 | S9: 2015-03-15 | T9: 2015-05-19
A10: 3 | B10: 769078.4 | C10: 0.03 | D10: 122 | E10: 96 | F10: 1.96997541 | G10: 738 | H10: 1.9 | I10: 100 | J10: 0.96 | K10: 134611.2 | L10: 1.2635 | M10: 1.3373 | N10: =SUM(M10-L10) -> 0.0738 | O10: 1.2513 | P10: 1.2635 | Q10: =SUM(P10-O10) -> 0.0122 | R10: 買 | S10: 2015-06-23 | T10: 2015-07-02
A11: 4 | B11: 903689.6 | C11: 0.03 | D11: 115 | E11: 96 | F11: 2.455678261 | G11: 632 | H11: 2.4 | I11: 100 | J11: 0.96 | K11: 145612.8 | L11: 1.3887 | M11: 1.3255 | N11: =SUM(L11-M11) -> 0.0632 | O11: 1.4002 | P11: 1.3887 | Q11: =SUM(O11-P11) -> 0.0115 | R11: 売 | S11: 2015-11-22 | T11: 2015-12-03
A12: 5 | B12: 1049302.4 | C12: 0.03 | D12: 133 | E12: 96 | F12: 2.465466165 | G12: 423 | H12: 2.4 | I12: 100 | J12: 0.96 | K12: 97459.2 | L12: 1.3223 | M12: 1.28 | N12: =SUM(L12-M12) -> 0.0423 | O12: 1.3356 | P12: 1.3223 | Q12: =SUM(O12-P12) -> 0.0133 | R12: 売 | S12: 2015-01-05 | T12: 2015-01-10
A13: 6 | B13: 1146761.6 | C13: 0.03 | D13: 110 | E13: 96 | F13: 3.257845455 | G13: 456 | H13: 3.2 | I13: 100 | J13: 0.96 | K13: 140083.2 | L13: 1.35 | M13: 1.3956 | N13: 0.0456 | O13: 1.339 | P13: 1.35 | Q13: =SUM(P13-O13) -> 0.011 | R13: 買 | S13: 2015-03-11 | T13: 2015-03-21
A14: 7 | B14: 1286844.8 | C14: 0.03 | D14: 106 | E14: 96 | F14: 3.793764151 | G14: 345 | H14: 3.7 | I14: 100 | J14: 0.96 | K14: 122544 | L14: 1.3951 | M14: 1.4296 | N14: 0.0345 | O14: 1.3845 | P14: 1.3951 | Q14: =SUM(P14-O14) -> 0.0106 | R14: 買 | S14: 2015-04-27 | T14: 2015-05-05
A15: 8 | B15: 1409388.8 | C15: 0.03 | D15: 64 | E15: 96 | F15: =SUM(B15*C15/D15/E15) -> 6.88178125 | G15: 553 | H15: 6.8 | I15: 100 | J15: 0.96 | K15: 360998.4 | L15: 1.3782 | M15: 1.4335 | N15: 0.0553 | O15: 1.3718 | P15: 1.3782 | Q15: =SUM(P15-O15) -> 0.0064 | R15: 買 | S15: 2015-05-25 | T15: 2015-06-06
A16: 9 | B16: 1770387.2 | C16: 0.03 | D16: 90 | E16: 96 | F16: 6.147177778 | G16: 634 | H16: 6.1 | I16: 100 | J16: 0.96 | K16: 371270.4 | L16: 1.4068 | M16: 1.3434 | N16: =SUM(L16-M16) -> 0.0634 | O16: 1.4158 | P16: 1.4068 | Q16: =SUM(O16-P16) -> 0.009 | R16: 売 | S16: 2015-06-29 | T16: 2015-07-20
A17: 10 | B17: 2141657.6 | C17: 0.03 | D17: 99 | E17: 96 | F17: 6.760282828 | G17: 361 | H17: 6.7 | I17: 100 | J17: 0.96 | K17: 232195.2 | L17: 1.3843 | M17: 1.3482 | N17: =SUM(L17-M17) -> 0.0361 | O17: 1.3942 | P17: 1.3843 | Q17: =SUM(O17-P17) -> 0.0099 | R17: 売 | S17: 2015-09-08 | T17: 2015-09-14
A18: 11 | B18: 2373852.8 | C18: 0.03 | D18: 125 | E18: 96 | F18: 5.934632 | G18: -72 | H18: 5.9 | I18: 100 | J18: 0.96 | K18: -40780.8 | L18: 1.3905 | M18: 1.3977 | N18: =SUM(L18-M18) -> -0.0072 | O18: 1.403 | P18: 1.3905 | Q18: =SUM(O18-P18) -> 0.0125 | R18: 売 | S18: 2015-11-09 | T18: 2015-11-21
A19: 12 | B19: 2333072 | C19: 0.03 | D19: 100 | E19: 96 | F19: 7.29085 | G19: 710 | H19: 7.2 | I19: 100 | J19: 0.96 | K19: 490752 | L19: 1.36 | M19: 1.289 | N19: =SUM(L19-M19) -> 0.071 | O19: 1.37 | P19: 1.36 | Q19: =SUM(O19-P19) -> 0.01 | R19: 売 | S19: 2015-12-12 | T19: 2015-01-17

Sheet 獲得金額の計算
A3: 獲得pips | B3: 数量 | D3: レート | E3: 獲得金額円
A4: 411 | B4: 1.3 | C4: 100 | D4: 0.96 | E4: =SUM(A4*B4*C4*D4) -> 51292.8
A5: 422 | B5: 1.2 | C5: 100 | D5: 0.96 | E5: 48614.4
A6: 77 | B6: 1 | C6: 100 | D6: 0.96 | E6: 7392
A7: 2787 | B7: 0.6 | C7: 100 | D7: 0.96 | E7: 160531.2
A8: 289.2 | B8: 1.1 | C8: 100 | D8: 0.96 | E8: 30539.52
A9: 220.8 | B9: 0.8 | C9: 100 | D9: 0.96 | E9: 16957.44
A10: 745 | B10: 2.6 | C10: 100 | D10: 0.96 | E10: 185952
A11: 213 | B11: 0.5 | C11: 100 | D11: 0.96 | E11: 10224
A12: 304 | B12: 1.8 | C12: 100 | D12: 0.96 | E12: 52531.2
A13: 566 | B13: 0.5 | C13: 100 | D13: 0.96 | E13: 27168
A14: 306 | B14: 3 | C14: 100 | D14: 0.96 | E14: 88128
A15: 772 | B15: 0.5 | C15: 100 | D15: 0.96 | E15: 37056
A16: 1551 | B16: 0.5 | C16: 100 | D16: 0.96 | E16: 74448
E18: =SUM(E4:E16) -> 790834.56
A23: 402 | B23: 1.5 | C23: 100 | E23: =SUM(A23*B23*C23) -> 60300
A24: 221 | B24: 1.5 | C24: 100 | E24: =SUM(A24*B24*C24) -> 33150
A25: 882 | B25: 1.3 | C25: 100 | E25: 114660
A26: 493 | B26: 0.6 | C26: 100 | E26: 29580
A27: 669 | B27: 1 | C27: 100 | E27: 66900
A28: 169 | B28: 5 | C28: 100 | E28: 84500
A29: 115 | B29: 6.2 | C29: 100 | E29: 71300

Sheet 利益計算
B2: エントリー | C2: 決済 | D2: 損益 | E2: 獲得pips | G2: STOP | H2: エントリー | I2: 損切り
A3: 1
A4: 2 | B4: 1.3886 | C4: 1.3475 | D4: =SUM(B4-C4) -> 0.0411 | E4: =SUM(D4*10000) -> 411
A5: 3 | B5: 1.3227 | C5: 1.2805 | D5: =SUM(B5-C5) -> 0.0422 | E5: 422
A6: 4 | B6: 1.31848 | C6: 1.31078 | D6: =SUM(B6-C6) -> 0.0077 | E6: 77
A7: 5 | B7: 1.5447 | C7: 1.266 | D7: =SUM(B7-C7) -> 0.2787 | E7: 2787 | G7: 1.57 | H7: 1.5447 | I7: =SUM(G7-H7) -> 0.0253
A8: 6 | B8: 1.3687 | C8: 1.39762 | D8: =SUM(C8-B8) -> 0.02892 | E8: 289.2 | F8: 買い | G8: 1.355 | H8: 1.3687 | I8: =SUM(H8-G8) -> 0.0137
A9: 7 | B9: 1.3893 | C9: 1.36722 | D9: =SUM(B9-C9) -> 0.02208 | E9: 220.8 | G9: 1.4068 | H9: 1.3893 | I9: =SUM(G9-H9) -> 0.0175
A10: 8 | B10: 121.61 | C10: 125.63 | D10: =SUM(C10-B10) -> 4.02 | E10: 402 | F10: 買い | G10: 120.64 | H10: 121.61 | I10: =SUM(H10-G10) -> 0.97 | J10: 買い
A11: 9 | B11: 122.79 | C11: 120.58 | D11: 2.21 | E11: 221 | G11: 123.74 | H11: 122.79 | I11: =SUM(G11-H11) -> 0.95
A12: 10 | B12: 1.5447 | C12: 1.266 | D12: 0.2787 | E12: 2787 | G12: 1.2158 | H12: 1.2441 | I12: =SUM(H12-G12) -> 0.0283 | J12: 買い
B13: 1.2228 | C13: 1.2441 | D13: =SUM(C13-B13) -> 0.0213 | E13: 213 | F13: 買い | G13: 1.241 | H13: 1.2494 | I13: =SUM(H13-G13) -> 0.0084 | J13: 買い
B14: 1.249 | C14: 1.2794 | D14: =SUM(C14-B14) -> 0.0304 | E14: 304 | F14: 買い | G14: 1.2643 | H14: 1.2694 | I14: =SUM(H14-G14) -> 0.0051 | J14: 買い
B15: 1.2228 | C15: 1.2794 | D15: =SUM(C15-B15) -> 0.0566 | E15: 566 | F15: 買い | G15: 186.95 | H15: 185.82 | I15: =SUM(H15-G15) -> -1.13
B16: 1.2694 | C16: 1.3 | D16: =SUM(C16-B16) -> 0.0306 | E16: 306 | F16: 買い | G16: 121.73 | H16: 121.49 | I16: =SUM(H16-G16) -> -0.24
B17: 1.2228 | C17: 1.3 | D17: =SUM(C17-B17) -> 0.0772 | E17: 772 | F17: 買い
B18: 185.82 | C18: 177 | D18: =SUM(B18-C18) -> 8.82 | E18: 882 | F18: 売り
B19: 179.87 | C19: 184.8 | D19: =SUM(B19-C19) -> -4.93 | E19: 493 | F19: 買い
B20: 182.45 | C20: 175.76 | D20: =SUM(B20-C20) -> 6.69 | E20: 669 | F20: 売り
